bitfinex-derivatives/quotes_SOLF0:USTF0_20240920
["timestamp","ask_amount","ask_price","bid_price","bid_amount"]
[1726822861249,2.7591,151.05,150.92,3.8271]
[1726822861543,0.99047901,151.04,150.87,3.24795844]
[1726822861742,3.3121,150.94,150.9,3.3128]
[1726822861944,1.484,151.03,150.91,3.38798688]
[1726822862136,0.99033778,151.02,150.86,132.5]
[1726822862448,3.3122,150.94,150.86,132.5]
[1726822865149,3.3122,150.94,150.89,3.3129]
[1726822865345,3.312,150.95,150.89,3.26926073]
[1726822865549,3.312,150.95,150.91,3.3127]
[1726822865753,3.312,150.95,150.91,6.59687373]
[1726822865953,3.3117,150.96,150.91,3.28417373]
[1726822866149,3.3117,150.96,150.86,132.5]
[1726822866751,3.3117,150.96,150.91,3.3125]
[1726822866947,3.3117,150.96,150.92,3.36735513]
[1726822868555,1.484,151.03,150.86,132.5]
[1726822868753,0.99070766,151.02,150.86,132.5]
[1726822868955,0.99069518,151.01,150.86,132.5]
[1726822869146,1.484,151.03,150.89,3.313]
[1726822869349,1.3693,151.0,150.9,3.31057824]
[1726822869551,1.4888,150.99,150.89,3.313]
[1726822869754,4.77385196,150.98,150.89,3.36392656]
[1726822869950,3.28075619,150.97,150.88,6.65900198]
[1726822870150,3.3126,150.92,150.88,3.3133]
[1726822870454,1.4868,150.98,150.87,3.30825874]
[1726822870751,4.74137906,150.98,150.87,3.30825874]
[1726822870954,3.3126,150.92,150.88,6.59836382]
[1726822871156,3.3126,150.92,150.88,3.3133]
[1726822871652,3.3126,150.92,150.88,6.55029811]
[1726822872950,3.3123,150.93,150.89,3.3131]
[1726822873354,1.4868,150.98,150.88,3.23699811]
[1726822873556,1.4868,150.98,150.86,132.5]
[1726822874260,3.3122,150.94,150.86,132.5]
[1726822874556,4.79240245,150.98,150.86,132.5]
[1726822874956,3.3125,150.92,150.88,3.3132]
[1726822875254,3.3125,150.92,150.88,6.643217]
[1726822875455,3.3125,150.92,150.88,3.3132]
[1726822875962,3.3125,150.92,150.88,6.5858772]
[1726822877460,3.3128,150.91,150.85,4.1609]
[1726822878858,4.79240245,150.98,150.85,4.1609]
[1726822879462,3.3129,150.91,150.86,3.3136]
[1726822879768,3.3129,150.91,150.87,3.33045909]
[1726822880264,3.3129,150.91,150.86,3.3136]
[1726822880466,3.3129,150.91,150.87,3.23931806]
[1726822880966,3.3129,150.9,150.87,3.23931806]
[1726822881667,4.79240245,150.98,150.85,1.4311]
[1726822881961,6.623,150.97,150.82,132.56]
[1726822882365,6.6232,150.96,150.82,132.56]
[1726822882965,6.6232,150.96,150.83,3.3144]
[1726822883471,0.99038886,150.95,150.82,132.56]
[1726822883971,1.4727,150.94,150.82,132.56]
[1726822884373,2.9295,150.93,150.82,132.56]
[1726822884767,2.9295,150.93,150.79,3.38436359]
[1726822884768,6.6251,150.92,150.79,3.38436359]
[1726822884970,6.6251,150.92,150.75,4.2492]
[1726822885167,3.3146,150.83,150.79,3.3152]
[1726822885367,3.3146,150.83,150.75,7.60850326]
[1726822885772,3.3148,150.82,150.75,7.60850326]
[1726822886265,4.3341,150.86,150.75,7.60850326]
[1726822886469,3.3148,150.82,150.78,3.3154]
[1726822890470,3.315,150.81,150.76,3.3159]
[1726822892875,3.3151,150.8,150.76,3.3159]
[1726822893176,4.3341,150.86,150.77,3.3158]
[1726822893474,3.3148,150.82,150.77,3.3158]
[1726822894071,3.3149,150.81,150.77,3.3158]
[1726822894272,4.3341,150.86,150.76,3.3159]
[1726822894473,4.3341,150.86,150.75,7.60850326]
[1726822894673,3.3152,150.8,150.75,7.60850326]
[1726822895079,3.3152,150.8,150.75,10.92450326]
[1726822895278,3.3152,150.8,150.75,7.60850326]
[1726822896174,3.3152,150.8,150.75,10.92460326]
[1726822896881,3.315,150.81,150.76,3.3159]
[1726822898378,3.3154,150.79,150.75,10.92460326]
[1726822898880,3.3154,150.79,150.75,4.7276]
[1726822899476,3.3154,150.79,150.75,8.1064832]
[1726822903086,4.3341,150.86,150.73,3.3165]
[1726822903786,4.3341,150.86,150.74,6.59644445]
[1726822904289,4.3341,150.86,150.75,3.3162]
[1726822904290,3.3157,150.78,150.75,3.3162]
[1726822905483,3.3154,150.79,150.75,3.3162]
[1726822905683,4.3341,150.86,150.76,3.3159]
[1726822906186,3.3154,150.79,150.76,3.3159]
[1726822908494,3.3156,150.78,150.76,3.3159]
[1726822908684,3.3156,150.78,150.75,3.3161]
[1726822909292,4.3341,150.86,150.77,3.3156]
[1726822909793,3.3153,150.8,150.77,3.3156]
[1726822909989,4.3341,150.86,150.77,3.3156]
[1726822912090,3.3154,150.79,150.77,3.3156]
[1726822913495,3.3157,150.78,150.75,3.3161]
[1726822916503,4.3341,150.86,150.73,3.35223936]
[1726822916698,4.3341,150.86,150.71,2.9241]
[1726822917198,3.3151,150.81,150.77,3.3156]
[1726822917599,3.3152,150.8,150.77,3.3156]
[1726822918100,3.3155,150.79,150.76,3.316]
[1726822920007,3.3155,150.79,150.75,3.3161]
[1726822921106,4.3341,150.86,150.71,6.25875711]
[1726822921506,3.3155,150.79,150.75,3.316]
[1726822923409,3.3152,150.8,150.76,3.3159]
[1726822924710,3.3153,150.79,150.76,3.3159]
[1726822926003,3.3152,150.8,150.76,3.3159]
[1726822927901,3.3152,150.8,150.77,3.3156]
[1726822928105,4.3341,150.86,150.71,6.25875711]
[1726822928506,4.3341,150.86,150.78,3.3154]
[1726822929411,3.315,150.81,150.78,3.3154]
[1726822931403,3.3152,150.8,150.71,6.25875711]
[1726822932004,3.3152,150.8,150.77,3.3158]
[1726822933011,3.3152,150.8,150.76,3.3159]
[1726822933608,3.3152,150.8,150.71,6.25875711]
[1726822933815,4.3341,150.86,150.71,6.25875711]
[1726822934412,4.3341,150.86,150.71,138.93875711]
[1726822934618,3.3147,150.82,150.71,138.93875711]
[1726822934912,4.3341,150.86,150.71,138.93875711]
[1726822935120,3.3145,150.83,150.78,3.3154]
[1726822935319,3.3145,150.83,150.79,3.38540983]
[1726822935809,3.3143,150.84,150.71,138.93875711]
[1726822936314,3.3143,150.84,150.79,3.3152]
[1726822936511,3.3143,150.84,150.8,3.27495113]
[1726822936915,1.3567,150.92,150.8,3.27495113]
[1726822937111,3.81077907,150.91,150.71,138.93875711]
[1726822937314,3.34372237,150.9,150.71,138.93875711]
[1726822937516,3.314,150.85,150.8,3.3149]
[1726822937718,3.314,150.85,150.81,3.28966834]
[1726822938915,3.3143,150.84,150.81,3.28966834]
[1726822939121,2.8213,150.91,150.71,6.25875711]
[1726822939314,0.98942109,150.9,150.74,132.66]
[1726822939523,3.3146,150.83,150.78,3.3155]
[1726822940113,3.3143,150.84,150.75,1.405]
[1726822940425,2.8213,150.91,150.76,2.8615]
[1726822940426,3.27176087,150.9,150.76,2.8615]
[1726822940818,3.3136,150.87,150.82,3.3145]
[1726822941324,3.3138,150.86,150.82,3.3145]
[1726822941819,3.3138,150.86,150.81,3.35831364]
[1726822941820,2.8213,150.91,150.83,3.3144]
[1726822942423,3.3137,150.87,150.83,3.3144]
[1726822942622,3.3137,150.87,150.84,3.3142]
[1726822943622,3.3134,150.88,150.85,3.314]
[1726822944024,2.8213,150.91,150.82,3.39545506]
[1726822944321,3.30560245,150.98,150.83,1.4808]
[1726822944519,5.27782161,150.97,150.84,2.7852]
[1726822944715,7.57882144,150.97,150.84,2.7852]
[1726822944925,3.3125,150.92,150.84,2.7852]
[1726822945720,3.3125,150.92,150.87,3.3134]
[1726822946021,3.3125,150.92,150.84,2.7852]
[1726822946223,3.3129,150.9,150.84,2.7852]
[1726822947025,3.3128,150.91,150.84,2.7852]
[1726822947217,7.57882144,150.97,150.84,2.7852]
[1726822947624,4.2876,150.97,150.84,2.7852]
[1726822947826,7.58933294,150.97,150.84,2.7852]
[1726822948223,4.2876,150.97,150.84,2.7852]
[1726822948720,4.2876,150.97,150.84,135.4052]
[1726822950121,3.3124,150.93,150.88,3.3132]
[1726822950327,4.2876,150.97,150.84,135.4052]
[1726822950821,3.312,150.94,150.89,3.3129]
[1726822951719,3.3123,150.93,150.88,3.3133]
[1726822951924,4.2876,150.97,150.88,3.3133]
[1726822952921,3.3124,150.93,150.88,3.3133]
[1726822953826,3.3125,150.92,150.88,3.3133]
[1726822954826,4.2876,150.97,150.84,135.4052]
[1726822955526,3.3129,150.9,150.86,3.3136]
[1726822956725,4.2876,150.97,150.86,3.3136]
[1726822957327,3.3128,150.91,150.86,3.3136]
[1726822957721,3.3129,150.9,150.86,3.3136]
[1726822958322,4.2876,150.97,150.84,1.4008]
[1726822958623,4.2876,150.97,150.83,4.85955746]
[1726822958624,0.98988759,150.96,150.83,4.85955746]
[1726822959127,4.2876,150.97,150.83,4.85955746]
[1726822959424,0.98984022,150.96,150.83,4.85955746]
[1726822959728,3.3131,150.9,150.86,3.3138]
[1726822959929,4.2876,150.97,150.86,3.3138]
[1726822960118,0.98963875,150.96,150.86,3.3138]
[1726822960424,3.3132,150.89,150.86,3.3138]
[1726822963124,3.313,150.9,150.86,3.3138]
[1726822963830,3.3132,150.89,150.85,3.3139]
[1726822964232,4.2876,150.97,150.83,4.85955746]
[1726822964426,3.3129,150.91,150.83,4.85955746]
[1726822964625,4.2876,150.97,150.83,6.30635746]
[1726822964930,3.3129,150.9,150.86,3.3136]
[1726822965123,4.2876,150.97,150.83,6.30635746]
[1726822965431,0.98968509,150.96,150.85,3.3138]
[1726822966133,0.98968509,150.96,150.83,6.30635746]
[1726822966528,3.3135,150.88,150.85,3.314]
[1726822969026,3.3135,150.88,150.84,3.3141]
[1726822970029,3.3133,150.89,150.85,3.3139]
[1726822970633,3.313,150.9,150.86,3.3138]
[1726822971431,3.313,150.9,150.87,3.3135]
[1726822971626,4.2876,150.97,150.87,3.3135]
[1726822971627,3.3128,150.91,150.87,3.3135]
[1726822971931,4.2876,150.97,150.87,3.3135]
[1726822972435,4.2876,150.97,150.88,3.3133]
[1726822973128,3.3128,150.91,150.88,3.3133]
[1726822973627,4.2876,150.97,150.88,3.3133]
[1726822974839,3.3129,150.9,150.88,3.3133]
[1726822978039,3.3128,150.91,150.88,3.3133]
[1726822978935,4.2876,150.97,150.83,6.30635746]
[1726822979229,0.989784,150.96,150.83,6.30635746]
[1726822979433,3.3129,150.91,150.88,3.3133]
[1726822979934,4.2876,150.97,150.83,6.30635746]
[1726822980137,3.3129,150.91,150.87,3.3134]
[1726822980338,4.2876,150.97,150.87,3.3134]
[1726822980535,0.98976673,150.96,150.87,3.3134]
[1726822980839,3.3128,150.91,150.88,3.3132]
[1726822981435,4.2876,150.97,150.83,6.30635746]
[1726822981631,0.98986952,150.96,150.83,6.30635746]
[1726822982340,3.3124,150.93,150.83,6.30635746]
[1726822983241,3.3125,150.92,150.88,3.3132]
[1726822983542,3.3125,150.92,150.83,6.30635746]
[1726822984145,3.3122,150.94,150.83,6.30635746]
[1726822984741,3.3119,150.95,150.83,6.30635746]
[1726822986443,3.312,150.94,150.9,3.3128]
[1726822987646,3.3123,150.93,150.89,3.313]
[1726822987847,3.3123,150.93,150.84,132.56]
[1726822989752,3.3123,150.93,150.89,3.3131]
[1726822990549,3.3123,150.93,150.9,3.3129]
[1726822990949,3.3123,150.93,150.89,3.3131]
[1726823000670,4.2876,150.97,150.84,132.56]
[1726823000671,3.3122,150.94,150.84,132.56]
[1726823001175,3.3122,150.94,150.9,3.3129]
[1726823004977,3.3119,150.95,150.91,3.3126]
[1726823006778,3.3119,150.95,150.84,132.54]
[1726823006984,4.2876,150.97,150.84,132.54]
[1726823007681,3.3118,150.95,150.84,132.54]
[1726823008881,3.3118,150.95,150.91,3.3125]
[1726823012680,3.3118,150.95,150.92,3.3125]
[1726823014081,3.312,150.94,150.91,3.3126]
[1726823015281,3.312,150.95,150.92,3.3124]
[1726823018990,3.3121,150.94,150.92,3.3124]
[1726823019783,7.59430959,150.97,150.9,3.3128]
[1726823020790,6.62,151.04,150.83,138.84635746]
[1726823021089,3.3111,150.99,150.83,138.84635746]
[1726823021286,3.3111,150.99,150.95,3.3117]
[1726823022491,4.0283,151.01,150.87,6.6271]
[1726823022682,4.0283,151.01,150.88,4.0254]
[1726823023090,7.3388,151.01,150.88,4.0254]
[1726823023790,7.3388,151.01,150.96,3.3114]
[1726823024192,7.3388,151.01,150.95,3.37419247]
[1726823024388,7.3388,151.01,150.88,4.0254]
[1726823024889,7.3388,151.01,150.96,3.3114]
[1726823026091,7.3388,151.01,150.97,3.3114]
[1726823026592,3.3103,151.02,150.97,3.3114]
[1726823026792,3.9584,151.05,150.97,3.3114]
[1726823027990,3.9584,151.05,150.98,3.3111]
[1726823028290,3.3105,151.02,150.98,3.3111]
[1726823029898,3.3105,151.02,150.99,3.3109]
[1726823034598,3.9584,151.05,151.01,3.3105]
[1726823035500,3.3101,151.03,151.0,3.3106]
[1726823036401,3.3104,151.02,150.99,3.3108]
[1726823039009,3.3104,151.02,150.98,3.3111]
[1726823039802,3.3104,151.02,150.99,3.27415622]
[1726823040303,3.3101,151.03,150.99,6.58505622]
[1726823040606,3.9584,151.05,150.99,6.58505622]
[1726823041506,3.3102,151.03,150.99,6.58505622]
[1726823044513,3.3103,151.02,150.99,6.58505622]
[1726823044807,3.9584,151.05,150.93,136.432]
[1726823045307,3.9584,151.05,150.95,3.3117]
[1726823045508,3.3111,150.99,150.95,6.70045609]
[1726823045708,3.3111,150.99,150.95,3.3117]
[1726823046312,3.3111,150.99,150.95,6.60539471]
[1726823047511,3.9584,151.05,150.95,6.60539471]
[1726823048115,3.9584,151.05,150.96,3.3116]
[1726823048913,3.3111,150.99,150.96,3.3116]
[1726823050714,3.3112,150.98,150.95,3.29369471]
[1726823050915,3.3112,150.98,150.93,3.952]
[1726823051216,3.3112,150.98,150.95,3.3117]
[1726823051418,3.3112,150.98,150.95,6.64745839]
[1726823051719,3.9584,151.05,150.94,3.3119]
[1726823052315,3.3115,150.97,150.94,3.3119]
[1726823053423,3.3115,150.97,150.93,7.24303869]
[1726823053612,3.3115,150.97,150.93,3.29103869]
[1726823053817,3.3115,150.97,150.89,132.5]
[1726823054321,3.3115,150.97,150.93,3.3122]
[1726823054516,3.9584,151.05,150.93,3.3122]
[1726823054821,3.9584,151.05,150.94,3.312]
[1726823055123,3.9584,151.05,150.89,132.5]
[1726823055817,3.9584,151.05,150.9,6.6257]
[1726823056023,2.6253,151.05,150.9,6.6257]
[1726823056520,2.6253,151.05,150.91,6.6254]
[1726823056716,1.377,151.08,150.91,9.98644811]
[1726823057518,1.377,151.08,151.01,3.3103]
[1726823058017,3.3094,151.06,151.01,3.3103]
[1726823058924,3.3097,151.05,151.01,3.3103]
[1726823059318,3.3097,151.05,151.0,3.34834672]
[1726823059319,3.3093,151.07,151.0,3.34834672]
[1726823059514,3.3093,151.07,150.91,9.98644811]
[1726823059922,3.3093,151.07,151.02,3.3101]
[1726823060116,3.25792248,151.11,150.91,9.98644811]
[1726823060117,3.3094,151.06,150.91,9.98644811]
[1726823060522,3.3094,151.06,151.01,3.3103]
[1726823060721,3.3094,151.06,151.01,6.57640605]
[1726823061533,3.3098,151.05,151.0,3.3106]
[1726823061728,2.5982,151.09,151.0,3.3106]
[1726823063334,3.3098,151.05,151.01,3.3105]
[1726823065030,3.31,151.04,151.0,3.3107]
[1726823069831,2.5982,151.09,150.95,3.906]
[1726823070226,3.3105,151.01,150.97,3.3113]
[1726823070427,2.5982,151.09,150.95,3.906]
[1726823070631,0.98748515,151.08,150.95,2.5899]
[1726823070934,0.98748515,151.08,150.96,3.3115]
[1726823071636,3.3108,151.0,150.97,3.3113]
[1726823071840,2.5982,151.09,150.97,3.3113]
[1726823072134,3.3107,151.01,150.98,3.3111]
[1726823072334,2.5982,151.09,150.98,3.3111]
[1726823072535,0.98729527,151.08,150.95,3.23088731]
[1726823072735,0.98729527,151.08,150.99,3.3109]
[1726823073736,3.3103,151.02,150.99,3.3109]
[1726823075835,3.3101,151.03,150.99,3.3109]
[1726823077340,3.3103,151.02,150.99,3.3109]
[1726823078640,3.3101,151.03,151.0,3.3107]
[1726823078836,2.5982,151.09,150.9,6.6258]
[1726823079244,2.5982,151.09,150.99,3.3108]
[1726823080247,3.3103,151.03,150.99,3.3108]
[1726823081845,3.3103,151.02,150.99,3.3108]
[1726823082240,3.3103,151.02,151.0,3.3107]
[1726823083941,3.3103,151.02,150.99,3.3108]
[1726823089551,3.3103,151.02,150.96,3.27470065]
[1726823089552,2.5982,151.09,150.96,3.27470065]
[1726823089749,2.5982,151.09,150.9,139.1258]
[1726823090250,3.3109,151.0,150.97,3.3112]
[1726823090446,3.3109,151.0,150.96,3.38919745]
[1726823090648,3.3109,151.0,150.9,139.1258]
[1726823092841,3.3109,151.0,150.96,3.3114]
[1726823093046,3.3109,151.0,150.96,6.67012382]
[1726823093246,3.3109,151.0,150.96,3.3114]
[1726823093953,3.3109,151.0,150.96,3.26233441]
[1726823094251,3.3109,151.0,150.9,139.1258]
[1726823094553,3.26862788,151.03,150.9,139.1258]
[1726823094752,26.498,151.08,150.9,139.1258]
[1726823094949,26.498,151.08,150.95,3.3117]
[1726823095256,3.311,150.99,150.95,6.64160637]
[1726823095557,3.23682931,151.03,150.95,6.64160637]
[1726823095753,26.498,151.08,150.95,6.64160637]
[1726823096346,3.311,150.99,150.95,6.64160637]
[1726823096552,3.30782027,150.99,150.88,3.9971]
[1726823096755,19.88,151.06,150.88,3.9971]
[1726823096955,1.3696,151.05,150.88,3.9971]
[1726823097156,27.8692,151.05,150.93,3.3122]
[1726823097356,3.3115,150.97,150.93,3.3122]
[1726823097949,3.3117,150.96,150.93,3.3122]
[1726823100858,3.36016759,151.0,150.91,3.27601431]
[1726823101053,3.9874,150.99,150.88,3.9971]
[1726823101263,3.3122,150.94,150.9,3.3128]
[1726823101551,19.88,150.98,150.83,135.87875746]
[1726823101757,1.2754,150.93,150.83,135.87875746]
[1726823102149,3.3134,150.88,150.84,3.3141]
[1726823102353,1.2754,150.93,150.83,135.87875746]
[1726823102553,2.7604,150.92,150.83,135.87875746]
[1726823102950,2.7604,150.92,150.83,3.37875746]
[1726823103152,3.29167676,150.91,150.79,1.3263]
[1726823103356,2.7604,150.92,150.79,4.69520571]
[1726823103557,2.7604,150.92,150.79,1.3263]
[1726823103759,1.2754,150.93,150.79,1.3263]
[1726823103958,1.2754,150.93,150.79,4.58350547]
[1726823104955,3.3128,150.91,150.86,3.3137]
[1726823105461,3.3129,150.9,150.86,3.3137]
[1726823107255,3.3128,150.91,150.86,3.3137]
[1726823107860,3.3128,150.91,150.87,3.3135]
[1726823108060,2.7304,150.98,150.79,4.58350547]
[1726823108254,4.0641,150.98,150.79,4.58350547]
[1726823108457,3.3125,150.93,150.79,4.58350547]
[1726823110163,3.3125,150.93,150.88,3.3132]
[1726823110363,3.3125,150.93,150.89,3.23290393]
[1726823110756,3.3125,150.93,150.89,6.54600393]
[1726823110960,3.3125,150.93,150.89,3.3131]
[1726823111563,3.3125,150.93,150.89,6.68023872]
[1726823113558,4.0641,150.98,150.89,6.68023872]
[1726823113559,3.3125,150.92,150.89,6.68023872]
[1726823114460,3.3128,150.91,150.89,3.36713872]
[1726823114763,4.0641,150.98,150.84,1.3596]
[1726823115562,4.0641,150.98,150.87,3.3134]
[1726823115961,4.0641,150.98,150.84,1.3596]
[1726823116165,3.3129,150.91,150.84,1.3596]
[1726823116860,3.3129,150.91,150.87,3.3134]
[1726823117059,3.3129,150.9,150.87,3.3134]
[1726823117766,3.3129,150.9,150.86,3.3137]
[1726823117966,23.9441,150.98,150.84,1.3596]
[1726823118162,19.88,150.97,150.84,1.3596]
[1726823118362,19.88,150.97,150.83,20.9856]
[1726823118563,19.88,150.95,150.83,18.3144]
[1726823119359,6.6235,150.96,150.83,15.0]
[1726823120468,3.3134,150.88,150.85,3.3139]
[1726823122272,3.2750886,150.91,150.83,15.0]
[1726823122470,26.5035,150.96,150.83,15.0]
[1726823123168,26.5035,150.96,150.85,3.314]
[1726823124677,6.6235,150.96,150.86,3.3138]
[1726823125275,3.3134,150.88,150.86,3.3138]
[1726823126567,3.3132,150.89,150.86,3.3138]
[1726823127768,3.3133,150.88,150.86,3.3138]
[1726823128769,3.3132,150.89,150.86,3.3138]
[1726823130674,4.0641,150.98,150.83,15.0]
[1726823130874,0.98451168,150.97,150.83,15.0]
[1726823131271,3.3129,150.9,150.87,3.3134]
[1726823132675,3.3129,150.9,150.88,3.3133]
[1726823135082,3.3128,150.91,150.88,3.3133]
[1726823135283,4.0641,150.98,150.88,3.3133]
[1726823138781,3.3129,150.9,150.88,3.3133]
[1726823141085,3.3129,150.9,150.87,3.3135]
[1726823141981,3.3132,150.89,150.86,3.3137]
[1726823142177,26.5028,150.97,150.86,3.3137]
[1726823142482,19.88,150.97,150.83,15.0]
[1726823142682,3.3137,150.87,150.83,15.0]
[1726823143080,3.3137,150.87,150.84,3.314]
[1726823143883,3.3136,150.87,150.83,18.3142]
[1726823145386,3.3136,150.87,150.84,3.3142]
[1726823146787,3.36349399,150.91,150.83,15.0]
[1726823147088,3.959,150.9,150.83,15.0]
[1726823147284,3.3141,150.85,150.83,15.0]
[1726823148779,3.3142,150.84,150.83,15.0]
[1726823151581,3.3142,150.84,150.83,6.6028]
[1726823166811,3.3141,150.85,150.83,6.6028]
[1726823167115,6.00024645,150.9,150.83,6.6028]
[1726823167312,6.00024645,150.9,150.83,9.9171]
[1726823168318,6.00024645,150.9,150.83,6.6028]
[1726823169112,3.3139,150.86,150.83,9.9172]
[1726823175816,3.3139,150.86,150.84,3.3142]
[1726823176012,3.3139,150.86,150.83,6.6028]
[1726823177118,6.6232,150.96,150.83,6.6028]
[1726823177320,0.98715746,150.95,150.83,6.6028]
[1726823177622,3.3133,150.89,150.86,3.3137]
[1726823178222,3.3134,150.88,150.86,3.3137]
[1726823178422,3.34913775,150.92,150.87,3.3136]
[1726823178721,3.3133,150.89,150.84,3.8519]
[1726823178920,3.3133,150.89,150.86,3.3137]
[1726823180422,3.3133,150.89,150.87,3.3136]
[1726823180812,3.3131,150.9,150.87,3.3136]
[1726823182218,3.30957019,150.93,150.87,3.3136]
[1726823182420,3.3132,150.89,150.87,3.3136]
[1726823185227,3.3131,150.9,150.87,3.3136]
[1726823186227,3.3131,150.89,150.87,3.3136]
[1726823187227,3.313,150.9,150.87,3.3136]
[1726823187831,3.3132,150.89,150.87,3.3136]
[1726823189025,3.313,150.9,150.87,3.3136]
[1726823191924,3.313,150.9,150.84,3.8519]
[1726823192128,3.3128,150.91,150.84,3.8519]
[1726823192830,3.3128,150.91,150.88,3.3132]
[1726823193628,3.3129,150.9,150.88,3.3132]
[1726823195532,3.3131,150.89,150.87,3.3135]
[1726823196030,3.3131,150.89,150.86,9.9165]
[1726823196424,3.3136,150.87,150.86,6.6028]
[1726823201341,3.3134,150.88,150.86,6.6028]
[1726823202139,2.5884,150.93,150.86,6.6028]
[1726823202140,2.5884,150.93,150.86,9.9165]
[1726823203039,2.5884,150.93,150.86,6.6028]
[1726823205552,2.5884,150.93,150.87,5.3]
[1726823205553,3.3135,150.88,150.87,5.3]
[1726823205955,2.5884,150.93,150.87,5.3]
[1726823206451,2.5884,150.93,150.92,7.4867]
[1726823207850,5.9006,150.93,150.92,7.4867]
[1726823212956,3.3122,150.93,150.92,7.4867]
[1726823215964,3.3122,150.93,150.92,19.9467]
[1726823220459,3.3122,150.93,150.92,25.2467]
[1726823222061,2.7241,150.98,150.92,25.2467]
[1726823222364,0.98807037,150.97,150.92,17.76]
[1726823222562,12.95671506,151.0,150.92,17.76]
[1726823222766,0.98814677,150.99,150.92,19.1566]
[1726823223067,3.3255975,150.99,150.92,17.76]
[1726823223261,3.3122,150.93,150.92,17.76]
[1726823223457,6.67954972,150.93,150.92,17.76]
[1726823223658,3.3122,150.93,150.92,17.76]
[1726823224263,6.60068442,150.93,150.92,17.76]
[1726823224762,6.60068442,150.93,150.92,25.83]
[1726823226060,3.3122,150.93,150.92,30.81]
[1726823226665,6.70023063,150.93,150.92,30.81]
[1726823227365,6.70023063,150.93,150.92,25.8284]
[1726823227565,6.70023063,150.93,150.86,6.6028]
[1726823227566,3.3136,150.87,150.86,6.6028]
[1726823227763,6.69599496,150.87,150.86,6.6028]
[1726823227965,3.3136,150.87,150.86,6.6028]
[1726823228662,6.64427943,150.87,150.86,11.9028]
[1726823228861,3.3136,150.87,150.86,11.9028]
[1726823229471,6.57308198,150.87,150.86,11.9028]
[1726823230768,3.3136,150.87,150.86,11.9028]
[1726823238975,3.3136,150.87,150.86,17.2028]
[1726823239179,3.3134,150.88,150.86,17.2028]
[1726823239374,97.83152502,150.92,150.86,17.2028]
[1726823239773,3.3133,150.89,150.86,17.2028]
[1726823240471,3.25285855,150.91,150.86,17.2028]
[1726823240666,97.83152502,150.92,150.86,17.2028]
[1726823240974,3.3127,150.91,150.88,3.3133]
[1726823241276,3.3127,150.91,150.87,13.45]
[1726823241778,3.3127,150.91,150.87,16.7634]
[1726823242167,3.3127,150.91,150.87,13.45]
[1726823243873,3.3127,150.91,150.88,3.3133]
[1726823245978,3.3127,150.91,150.88,8.6133]
[1726823247980,101.14402502,150.92,150.89,3.3131]
[1726823248480,101.14402502,150.92,150.9,2.7403]
[1726823249379,101.14402502,150.92,150.91,5.3]
[1726823255185,104.45193744,150.92,150.91,5.3]
[1726823265487,3.3136,150.87,150.86,6.6028]
[1726823265692,6.62493561,150.87,150.86,6.6028]
[1726823268088,3.3136,150.87,150.86,6.6028]
[1726823268590,3.3136,150.87,150.86,11.9028]
[1726823270394,3.3136,150.87,150.86,24.9328]
[1726823284208,97.83152502,150.92,150.86,24.9328]
[1726823284414,101.06582098,150.92,150.86,24.9328]
[1726823284803,3.3132,150.89,150.86,24.9328]
[1726823285702,3.3132,150.89,150.86,19.6328]
[1726823285903,3.3131,150.9,150.86,22.9465]
[1726823286311,101.06582098,150.92,150.86,22.9465]
[1726823286712,3.3131,150.89,150.86,19.6328]
[1726823286907,3.3131,150.89,150.87,5.3]
[1726823287418,3.3131,150.89,150.88,5.3]
[1726823288114,3.313,150.9,150.88,5.3]